Cogmind - Beta 17 @@@ ROGUE MODE // 2026.08.07 @ 12:41:21 Player: LandRaider Result: Destroyed by X-62 Marksman with Gauss Rifle Performance ------------- Evolutions (2) 1000 Regions Visited (4) 800 Robots Destroyed (34) 170 Value Destroyed (692) 692 Prototype IDs (3) 60 Alien Tech Used (0) 0 Bonus (33) 33 TOTAL SCORE: 2755 Bonus ------- Follower Combat Kills 33 Cogmind --------- Core Integrity 0/550 Matter 285/300 Energy 83/100 System Corruption 0% Temperature Cool (-31) Movement Core (50) Location -8/Materials Parts ------- > --- POWER (1) -------- (None) > --- PROPULSION (3) --- (None) > --- UTILITY (5) ------ Cryofiber Web Signal Interpreter Improved Signal Interpreter > --- WEAPON (2) ------- (None) > --- INVENTORY (5) ---- Light Nuclear Core Transport Network Coupler Shield Generator Hacking Suite Improved Datajack Peak State ------------ > --- POWER ------------ Cooled Ion Engine > --- PROPULSION ------- Improved Aluminum Leg Improved Aluminum Leg Carbon-fiber Leg > --- UTILITY ---------- Cryofiber Web Cooling System Medium Storage Unit Signal Interpreter Improved Signal Interpreter > --- WEAPON ----------- Field Laser Heavy Hammer > --- INVENTORY -------- Improved Ion Engine Cryofiber Web Heat Sink Improved Terrain Scan Processor Transport Network Coupler Light Armor Plating Light Armor Plating Shield Generator Improved Medium Laser Improved Datajack [Rating: 27] Favorites ----------- Power Cooled Ion Engine Engine Cooled Ion Engine Propulsion Improved Aluminum Leg Leg Improved Aluminum Leg Wheel Wheel Utility Signal Interpreter Device Cooling System Storage Medium Storage Unit Processor Signal Interpreter Protection Light Armor Plating Weapon Improved Medium Laser Energy Gun Improved Medium Laser Energy Cannon Heavy Particle Cannon Ballistic Gun Light Assault Rifle Impact Weapon Heavy Hammer Build | -11 -10 -9 -9 -8 ------- Run | Yrd Mat Mat Min Mat Slots Evolved 4 | . . 2 . 2 Power . | . . . . . Propulsion 1 | . . . . 1 Utility 3 | . . 2 . 1 Weapon . | . . . . . Parts Attached 37 | 6 1 15 2 13 Power 5 | 1 . 3 . 1 Engine 5 | 1 . 3 . 1 Core . | . . . . . Reactor . | . . . . . Propulsion 10 | 2 . 5 . 3 Treads . | . . . . . Leg 8 | . . 5 . 3 Wheel 2 | 2 . . . . Hover . | . . . . . Flight . | . . . . . Utility 11 | 1 . 4 1 5 Device 5 | . . 2 . 3 Storage 3 | 1 . 1 1 . Processor 2 | . . 1 . 1 Hackware . | . . . . . Protection 1 | . . . . 1 Artifact . | . . . . . Weapon 11 | 2 1 3 1 4 Energy Gun 7 | 1 1 3 1 1 Energy Cannon 1 | . . . . 1 Ballistic Gun 1 | 1 . . . . Ballistic Cannon . | . . . . . Launcher . | . . . . . Special Weapon . | . . . . . Impact Weapon 2 | . . . . 2 Slashing Weapon . | . . . . . Piercing Weapon . | . . . . . Special Melee Weapon . | . . . . . Unidentified Prototypes 3 | . . 2 . 1 Parts Lost 20 | . 3 1 . 16 Power 3 | . 1 . . 2 Propulsion 7 | . 1 1 . 5 Utility 5 | . . . . 5 Weapon 5 | . 1 . . 4 Highest Loss Streak 8 | . 3 1 . 8 To Critical Strikes . | . . . . . Average Backups 8 | 2 4 7 9 8 Power . | . 1 . 1 . Propulsion 1 | 1 2 1 2 . Utility 4 | . . 3 5 5 Weapon 1 | . 1 2 1 . Tool/Special . | . . . . . Unused Backups 9 | . . 1 1 7 Power 1 | . . . . 1 Propulsion . | . . . . . Utility 5 | . . . . 5 Weapon 2 | . . 1 1 . Tool/Special 1 | . . . . 1 Average Slot Usage (%) 93 | . 70 94 100 82 Engine 9 | . 10 11 11 6 Leg 19 | . . 16 22 20 Wheel 1 | . 21 2 . . Device 18 | . . 20 22 13 Storage 10 | . 14 11 11 9 Processor 12 | . . 10 11 17 Energy Gun 18 | . 14 21 22 8 Impact Weapon 1 | . . . . 5 Peak Build Rating 27 | 6 6 19 19 27 Average Rating 17 | 3 5 14 19 19 On Entrance 9 | . 6 3 19 19 Avg Prop Armor Cover (%) 9 | . . 9 . . Naked Turns . | . . . . . Heaviest Build 34 | 12 12 34 34 34 Greatest Support 41 | 26 26 26 26 41 Greatest Overweight (x) 8 | . . 8 1 4 Average Overweight (x) . | . . 2 1 . Largest Inventory Capacity 10 | 8 8 10 10 10 Average Capacity 9 | 7 8 8 10 9 Most Carried 10 | 4 4 10 10 10 Average Carried 8 | 2 4 7 9 8 Final Capacity 10 | 8 8 10 10 5 Final Carried 10 | 4 4 10 10 5 Class Distribution -------------------- 97% | Mutant Dominant Class ---------------- Mutant | -10/Materials Mutant | -9/Materials Mutant | -9/Mines Mutant | -8/Materials Resources | -11 -10 -9 -9 -8 ----------- Run | Yrd Mat Mat Min Mat Matter Collected 563 | 215 . 213 20 115 Remotely . | . . . . . Salvage Created 860 | . 65 423 143 229 Parts 51 | . 5 34 9 3 Haulers Intercepted 2 | . . 2 . . Recyclers Shooed 2 | . . 2 . . Parts Field Recycled . | . . . . . Retrieved Matter . | . . . . . Parts Self-Destructed . | . . . . . Prevented . | . . . . . Parts Restored . | . . . . . Kills | -11 -10 -9 -9 -8 ------- Run | Yrd Mat Mat Min Mat Combat Hostiles Destroyed 29 | . 4 12 6 7 Melee 2 | . . . . 2 Guns 22 | . 4 12 6 . Classes Destroyed 8 | . 1 5 . 2 Worker 1 | . . 1 . . Hauler 2 | . . 2 . . Watcher 2 | . . 2 . . Swarmer 18 | . 4 7 4 3 Grunt 8 | . . 4 2 2 Duelist 1 | . . . . 1 Sentry 1 | . . 1 . . Hunter 1 | . . . . 1 Best Kill Streak 7 | . 4 7 4 2 Combat Bots Only 5 | . 4 5 4 2 Max Kills in Single Turn 2 | . 1 2 1 1 Gunslinging 1 | . . 1 . . Exploded . | . . . . . Melee 1 | . . . . 1 Uniques/NPCs Destroyed . | . . . . . Combat | -11 -10 -9 -9 -8 -------- Run | Yrd Mat Mat Min Mat Hostile Shots Fired 318 | . 75 43 29 171 Missed 89 | . 22 10 10 47 Hits 229 | . 53 33 19 124 Melee 4 | . . . . 4 Projectile 225 | . 53 33 19 120 Critical Strikes 8 | . . 1 . 7 Damage Taken 2789 | . 458 320 178 1833 Core 818 | . 123 64 62 569 Absorbed by Shields . | . . . . . Core Remaining (%) 72 | 100 50 . 68 . Volleys Fired 75 | . 11 37 15 12 Largest 2 | . 2 2 2 2 Hottest 130 | . 60 130 121 119 Shots Fired 145 | . 19 74 30 22 Gun 145 | . 19 74 30 22 Cannon . | . . . . . Launcher . | . . . . . Special . | . . . . . Kinetic 8 | . 8 . . . Thermal 137 | . 11 74 30 22 Explosive . | . . . . . Electromagnetic . | . . . . . Robot Hit Streak 11 | . 3 11 8 3 Robot Miss Streak 6 | . 6 5 3 3 Penetration Max . | . . . . . Secondary Targets 5 | . 2 2 1 . Max Gunslinging Chain 1 | . 1 1 1 . Shots Hit Robots 103 | . 8 53 19 23 Core Hits 74 | . 6 52 11 5 Critical Kills . | . . . . . Critical Parts Destroyed 4 | . . . . 4 Critical Strikes 8 | . . 1 2 5 Burn 4 | . . 1 2 1 Smash 4 | . . . . 4 Melee Attacks 35 | . . . . 35 Impact 35 | . . . . 35 Slashing . | . . . . . Piercing . | . . . . . Sneak Attacks . | . . . . . Combat Hostiles . | . . . . . Follow-up Attacks . | . . . . . Damage Inflicted 1926 | . 91 798 332 705 Guns 1432 | . 91 798 332 211 Cannons . | . . . . . Explosions . | . . . . . Melee 494 | . . . . 494 Ramming . | . . . . . Kinetic 26 | . 26 . . . Thermal 1406 | . 65 798 332 211 Explosive . | . . . . . Electromagnetic . | . . . . . Impact 494 | . . . . 494 Slashing . | . . . . . Piercing . | . . . . . Highest Corruption . | . . . . . Average Corruption . | . . . . . Corruption Purged . | . . . . . Corruption Blocked . | . . . . . Overload Shots . | . . . . . Overflow Damage 207 | . . . . 207 Projectiles . | . . . . . Explosions . | . . . . . Melee 207 | . . . . 207 Knockbacks 2 | . . . . 2 Impact 2 | . . . . 2 Kinetic . | . . . . . Secondary . | . . . . . Self-Inflicted Damage . | . . . . . Shots . | . . . . . Rammed . | . . . . . Targets Rammed . | . . . . . Kicked . | . . . . . Crushed . | . . . . . Highest Temperature 70 | . 70 54 8 7 Average Temperature 20 | . 36 17 5 4 Received Heat Transfer 897 | . 54 51 36 756 Siege Activations . | . . . . . Martial Activations . | . . . . . Shielding Activations . | . . . . . Robots Disrupted . | . . . . . Combat Hostiles . | . . . . . Robots Corrupted 4 | . . . . 4 Combat Hostiles 4 | . . . . 4 Parts Fried 7 | . . . . 7 Impact Corruptions 8 | . . . . 8 Robots Melted 1 | . . . . 1 Combat Hostiles 1 | . . . . 1 Parts Melted 3 | . 1 1 1 . Heat Transferred 3037 | . 150 1463 869 555 Parts Sabotaged . | . . . . . Parts Stolen . | . . . . . Parts Stripped . | . . . . . Power Chain Reactions . | . . . . . Alert | -11 -10 -9 -9 -8 ------- Run | Yrd Mat Mat Min Mat Maximum Alert Level . | . . . . . Low Security (%) 100 | 100 100 100 100 100 Level 1 . | . . . . . Level 2 . | . . . . . Level 3 . | . . . . . Level 4 . | . . . . . Level 5 . | . . . . . High Security . | . . . . . Max Security . | . . . . . Peak Influence 171 | . 70 171 112 116 Initial 51 | . . 16 51 . Average 36 | . 25 71 23 34 Influence Increases 1054 | . 99 349 196 410 Destroy 0b10 Robot/C 600 | . 80 240 140 140 Destroy 0b10 Robot/NC 25 | . . 25 . . Destroy Leader 108 | . 10 58 10 30 Allied During Kill 1 | . . . 1 . Successful Hack 37 | . 9 23 . 5 Select Force Hacks 30 | . . . . 30 Disable Machine 45 | . . . 45 . Destroy Structure 13 | . . 3 . 10 Lose Combat Pursuer 195 | . . . . 195 Influence Decreases 977 | . 59 258 327 333 Entered New Map 104 | . . 24 80 . Time Decay 673 | . 29 224 247 173 Lost Part 200 | . 30 10 . 160 Squads Dispatched 5 | . . 3 . 2 Investigation 4 | . . 3 . 1 Extermination . | . . . . . Reinforcement 1 | . . . . 1 Assault . | . . . . . Garrison . | . . . . . Intercept . | . . . . . Searches Triggered . | . . . . . Construction Impeded . | . . . . . Haulers Reinforced . | . . . . . Active Scanning Responses . | . . . . . Cargo Convoy Interrupts . | . . . . . Stealth | -11 -10 -9 -9 -8 --------- Run | Yrd Mat Mat Min Mat Distress Signals . | . . . . . Communications Jammed . | . . . . . Distress Signals . | . . . . . Times Spotted 50 | . 8 15 7 20 Peak Tracking Total 9 | . 9 5 4 7 Tactical Retreats 6 | . . . . 6 Traps | -11 -10 -9 -9 -8 ------- Run | Yrd Mat Mat Min Mat Traps Triggered 1 | . . 1 . . Indirectly . | . . . . . Trap Hack Attempts . | . . . . . Triggered . | . . . . . Disarmed . | . . . . . Reprogrammed . | . . . . . Reused . | . . . . . Traps Extracted . | . . . . . Installed . | . . . . . Triggered . | . . . . . Machines | -11 -10 -9 -9 -8 ---------- Run | Yrd Mat Mat Min Mat Machines Disabled 3 | . . . 3 . Max in Single Turn 1 | . . . 1 . Machines Repaired . | . . . . . Machines Dismantled . | . . . . . Machines Sabotaged . | . . . . . Overloaded Fab Kills . | . . . . . Hacking | -11 -10 -9 -9 -8 --------- Run | Yrd Mat Mat Min Mat Machines Accessed 10 | . 1 6 . 3 Terminals 8 | . 1 5 . 2 Fabricators . | . . . . . Repair Stations . | . . . . . Recycling Units 1 | . . . . 1 Scanalyzers 1 | . . 1 . . Garrison Access . | . . . . . Total Hacks 37 | . 4 22 . 11 Successful 25 | . 3 15 . 7 Failed 11 | . 1 7 . 3 Catastrophic 2 | . . 1 . 1 Database Lockouts 1 | . . . . 1 Manual 13 | . 3 7 . 3 Terminals 30 | . 4 18 . 8 Fabricators . | . . . . . Repair Stations . | . . . . . Recycling Units 3 | . . . . 3 Scanalyzers 4 | . . 4 . . Garrison Access . | . . . . . Terminal Hacks 11 | . 1 7 . 3 Record 2 | . . . . 2 Robot Analysis 1 | . 1 . . . Level Access Points 1 | . . 1 . . Emergency Access Points 1 | . . 1 . . Maintenance Status 1 | . . 1 . . Security Status 1 | . . 1 . . Recall Investigation 2 | . . 2 . . Zone Layout 2 | . . 1 . 1 Fabricator Hacks . | . . . . . Repair Station Hacks . | . . . . . Recycling Unit Hacks 1 | . . . . 1 Report Inventory 1 | . . . . 1 Scanalyzer 4 | . . 4 . . Retrieve Study 4 | . . 4 . . Garrison Access Hacks . | . . . . . Unauthorized Hacks 9 | . 2 4 . 3 Terminals 8 | . 2 4 . 2 Track 4 | . 1 2 . 1 Botnet 4 | . 1 2 . 1 Fabricators . | . . . . . Repair Stations . | . . . . . Recycling Units 1 | . . . . 1 Tunnel 1 | . . . . 1 Scanalyzers . | . . . . . Garrison Access . | . . . . . Data Cores Recovered . | . . . . . Used . | . . . . . Hacking Detections 8 | . 1 5 . 2 Full Trace Events 3 | . . 3 . . Feedback Events . | . . . . . Feedback Blocked . | . . . . . Robot Schematics Acquired . | . . . . . Robots Built . | . . . . . Authchips . | . . . . . Time . | . . . . . Total Robot Build Rating . | . . . . . Part Schematics Acquired . | . . . . . Parts Built . | . . . . . Authchips . | . . . . . Time . | . . . . . Total Part Build Rating . | . . . . . Part Studies Acquired 4 | . . 4 . . Parts Repaired . | . . . . . Time . | . . . . . Parts Recycled . | . . . . . Recycled Matter . | . . . . . Retrieved Matter . | . . . . . Retrieved Components . | . . . . . Parts Scanalyzed . | . . . . . Part Schematics Acquired . | . . . . . Parts Damaged . | . . . . . Bothacking | -11 -10 -9 -9 -8 ------------ Run | Yrd Mat Mat Min Mat Used RIF Installer . | . . . . . Robots Hacked . | . . . . . Non-combat . | . . . . . Combat . | . . . . . Robot Hacks Applied . | . . . . . Relay Couplers Released . | . . . . . Fabnet Peak Effective % . | . . . . . Robots Rewired . | . . . . . Allies Hacked . | . . . . . Hacks Repelled . | . . . . . Allies | -11 -10 -9 -9 -8 -------- Run | Yrd Mat Mat Min Mat Total Allies 1 | . . . 1 . Largest Group 1 | . . . 1 . Highest-Rated Group 31 | . . . 31 . Highest-Rated Ally 31 | . . . 31 . Total Orders . | . . . . . Ally Attacks 1 | . . . 1 . Total Damage 22 | . . . 22 . Kills 1 | . . . 1 . Allies Corrupted . | . . . . . Allies Melted . | . . . . . Intel | -11 -10 -9 -9 -8 ------- Run | Yrd Mat Mat Min Mat Active Infowar (turns) . | . . . . . Robot Analysis Total 1 | . 1 . . . Derelict Logs Recovered 2 | . . . 2 . Drone Launches . | . . . . . Drone Recoveries . | . . . . . Exploration | -11 -10 -9 -9 -8 ------------- Run | Yrd Mat Mat Min Mat Turns Passed 2428 | 43 69 537 1186 593 Spaces Moved 1187 | 34 45 210 580 318 Core 62 | 3 . 22 . 37 Treads . | . . . . . Legs 968 | . . 107 580 281 Wheels 157 | 31 45 81 . . Hover . | . . . . . Flight . | . . . . . Fastest Speed 50 | 50 80 95 190 50 Average Speed 166 | 88 87 182 190 131 Slowest Speed 450 | 100 90 450 190 250 Overloaded Moves . | . . . . . Propulsion Burnouts . | . . . . . Robots Hopped . | . . . . . Potential Cave-ins 2 | . . . . 2 Cave-ins Triggered . | . . . . . Exploration Rate (%) 34 | 3 16 25 99 29 Regions Visited 4 Branch Regions 1 Pre-discovered Areas 2 | . . . 1 1 Known Exits Taken 2 | . . 1 1 . Unknown Exits Taken 2 | 1 1 . . . Scrap Searched 4 | . . . 4 . Spaces Dug 12 | . . . . 12 Terrain Destroyed 12 | . . . . 12 Melee 12 | . . . . 12 Projectile . | . . . . . AOE . | . . . . . Terrain Rammed . | . . . . . Walls Destroyed . | . . . . . Machines Disabled . | . . . . . Actions | -11 -10 -9 -9 -8 --------- Run | Yrd Mat Mat Min Mat Total 1435 | 43 56 289 636 411 Wait 57 | . . 7 36 14 Move 1183 | 33 44 209 579 318 Hop . | . . . . . Pick Up 20 | 4 . 9 1 6 Fast Attach 19 | 6 . 7 . 6 Attach 9 | . . 3 . 6 Detach . | . . . . . Swap 17 | . 1 7 2 7 Drop 20 | . . 10 3 7 Fire 75 | . 11 37 15 12 Melee 35 | . . . . 35 Ram . | . . . . . Kick . | . . . . . Crush . | . . . . . Escape Stasis . | . . . . . Rewire . | . . . . . Trap . | . . . . . Miscellaneous . | . . . . . Route ------- -11/Scrapyard -10/Materials -9/Materials (discovered 4 exits: Mat x3 / *Min) -9/Mines (discovered 3 exits: *Mat x2 / *Exi) -8/Materials History --------- Turn | Location | Event 27 | -11/Scrapyard | Discovered new exit (range 16) 44 | -11/Scrapyard | Entered Materials 71 | -10/Materials | Discovered new exit (range 15) 113 | -10/Materials | Entered another Materials area 113 | -9/Materials | Evolved 2 slots: Utility x2 129 | -9/Materials | Lost 3 parts (1p1n1w) 538 | -9/Materials | Build established: Mutant 582 | -9/Materials | Discovered new exit (range 11) 629 | -9/Materials | Identified exit to Materials 648 | -9/Materials | Identified exit to Mines 650 | -9/Materials | Entered Mines 700 | -9/Mines | Discovered exit to Materials (range 12) 793 | -9/Mines | Deemed a non-threat by the Exiles lab entrance 793 | -9/Mines | Discovered new exit (range 5) 799 | -9/Mines | Identified exit to Exiles 944 | -9/Mines | Received a Mining Laser from a helpful Derelict 1015 | -9/Mines | Learned location of Storage (-8) 1166 | -9/Mines | Joined a pair of Derelicts in attacking an 0b10 outpost 1836 | -9/Mines | Entered Materials 1836 | -8/Materials | Evolved 2 slots: Propulsion x1, Utility x1 2027 | -8/Materials | Central database locked down 2294 | -8/Materials | Lost 8 parts (1p3n2u2w) 2328 | -8/Materials | Core integrity fell below 50% 2363 | -8/Materials | Lost 5 parts (1p1n2u1w) 2385 | -8/Materials | Core integrity fell below 20% 2429 | -8/Materials | Destroyed by X-62 Marksman with Gauss Rifle Last Messages --------------- 02331_ Heat Sink destroyed. 02331_ Critical hit (Burn: +37). 02332_ Aluminum Leg+ destroyed. 02335_ Critical hit (Burn: +37). 02353_ Destroyed Flight Unit. 02353_ S-10 Pest system corrupted by crushing effect. 02355_ Flight Unit fried. 02355_ Lgt. Ion Engine fried. 02355_ S-10 Pest destroyed. 02363_ Hvy. Flail destroyed. 02373_ Critical hit (Burn: +37). 02377_ Atomic Centrifuge disabled. 02413_ Acquired Prototype Hover Unit. 02413_ Identified Aerolev Unit. 02413_ Faulty integration triggers meltdown. 02413_ Med. Storage Unit damaged (-7). 02413_ Imp. Signal Interpreter damaged (-7). 02416_ Critical hit (Burn: +37). 02425_ Med. Storage Unit destroyed. 02428_ Acquired Cryofiber Web. Map ----- +----------------------------------------------------+ | ?????????????????????????????????????????????????? | | ?????????????????????????????????????????????????? | | ?????????????????????????????????????????????????? | | ????????????? ?????????????????????????????????? | | ????????????? ????????????????????????????????? | | ????????????? ????????????????????????????????? | | ????????????? #????????????????????????????????? | | ????????????? #????????????????????????????????? | | ????????????? #????????????????????????????????? | | ????????????? #????????????????????????????????? | | ????????????# #????????????????????????????????? | | ????????????# #????????????????????????????????? | | ????????????# #????????????????????????????????? | | ?############ #????????????????????????????????? | | ##% """ """ # #????????????????????????????????? | | # # """ """ # #????????????????????????????????? | | ## " " """ # #?????#######????????????????????? | | ### + ####### #????????????????????? | | #?# # #????????????????????? | | ??# # T #????????????????????? | | ??# # #????????????????????? | | ??# # ####### #????????????????????? | | ??########### #??????# #?????????????????????? | | ?????# * # ########a #?????????????????????? | | ?????# + # # #?????????????????????? | | ###### ! # / +!@ #?????????????????????? | | ## ! # # # #?????????????????????? | | ## ?# # # #?????????????????????? | | """ ## ?# ######### #?????????????????????? | | """ ######### #???????# #?????????????????????? | | """ / #???????# x#?????????????????????? | | ######### ##???????# ?????????????????????? | | #####???????# #????????# ????????????????????? | | ##????????# ####?????# ???????????????????? | | #?????????# #?????# ???????????????????? | | #?????????#### #?????# ##??????????????????? | | #?????#??????# #####+# #???????????????????? | | #?????#??????# x+???????????????????? | | ########??????# #???????????????????? | | # #??????# #???????????????????? | | # #??????# ###### #???????????????????? | | + #??????# #????????/#???????????????????? | | # #??????# #?????????????????????????????? | | ########??????# #?????????????????????????????? | | ########??????# #?????????????????????????????? | | #??????# #?????????????????????????????? | | ?????????????# #?????????????????????????????? | | ????????????? +?????????????????????????????? | | ###????????????? #?????????????????????????????? | | ???????????????? #?????????????????????????????? | +----------------------------------------------------+ Best States ------------- Heat Dissipation 53 Energy Generation 14 Energy Capacity 280 Matter Stores 300 Matter Capacity 300 Sight Range 16 Terrain Scan Density 10 Base Temperature (-) 100 Armor Coverage 150 Evasion (%) 55 Item Schematics ----------------- None Robot Schematics ------------------ None Fabricated ------------ Nothing Repaired ---------- Nothing Studied --------- Wheel | -9/Materials | Hacked Aluminum Leg | -9/Materials | Hacked Ion Engine | -9/Materials | Hacked Particle Gun | -9/Materials | Hacked Alien Tech Used ----------------- None Achievements -------------- None Challenges ------------ None Game ------ Seed RecyclingElectronBlasthammer Manual? 0 Play Time 00:22:55 Cumulative 41.0 hours Start 2026.08.07 @ 12:16:11 End 2026.08.07 @ 12:41:21 Sessions 1 Manual Loads 0 Difficulty Rogue Special Mode None Game No. 39 Rogue 37 Adventurer 2 Explorer 0 Win Type - Total 0 Types 0/0/0/0/0/0/0/0/0/0 Lore% 26 Gallery% 25 Achievement% 22 Wizard Run 0 Options --------- Layout 0 ASCII 0 Keyboard 0 Movement Mouse Keybinds 0 Fullscreen 2 Font 24/Smallcaps Map View 76x50 Zoom Use 0% Tactical HUD 1 Map Filters NONE Filters NONE Steam 1 RUN: f65b356d-6ad5-4e11-bbe9-4c321d3455de